[Event "MČR juniorů a juniorek v rapid šachu 2024"]
[Site "Hotel Fit Fun, Harrachov, Czech Republic"]
[Date "2024.09.21"]
[Round "3.9"]
[White "Mikolas Petr"]
[Black "Pressler Tobias"]
[Result "1-0"]
[TimeControl "20+5"]
[WhiteFideId "23713224"]
[BlackFideId "23715359"]
[WhiteElo "1892"]
[BlackElo "1992"]

1. e4 {[%clk 00:20:08]} {[%emt 00:14:46]} c5 {[%clk 00:20:08]} {[%emt
00:00:02]} 2. Nf3 {[%clk 00:20:11]} {[%emt 00:00:01]} Nc6 {[%clk 00:20:10]}
{[%emt 00:00:04]} 3. d4 {[%clk 00:20:10]} {[%emt 00:00:06]} cxd4 {[%clk
00:20:13]} {[%emt 00:00:02]} 4. Nxd4 {[%clk 00:20:14]} {[%emt 00:00:02]} g6
{[%clk 00:20:16]} {[%emt 00:00:02]} 5. c4 {[%clk 00:20:12]} {[%emt 00:00:07]}
Bg7 {[%clk 00:20:18]} {[%emt 00:00:02]} 6. Be3 {[%clk 00:20:16]} {[%emt
00:00:02]} Nf6 {[%clk 00:20:22]} {[%emt 00:00:01]} 7. Nc3 {[%clk 00:20:20]} Ng4
{[%clk 00:20:25]} {[%emt 00:00:02]} 8. Qxg4 {[%clk 00:18:25]} {[%emt 00:01:59]}
Nxd4 {[%clk 00:20:28]} {[%emt 00:00:02]} 9. Qd1 {[%clk 00:18:15]} {[%emt
00:00:15]} Ne6 {[%clk 00:19:57]} {[%emt 00:00:37]} 10. Be2 {[%clk 00:16:03]}
{[%emt 00:02:17]} O-O {[%clk 00:19:59]} {[%emt 00:00:03]} 11. O-O {[%clk
00:16:00]} {[%emt 00:00:08]} b6 {[%clk 00:19:57]} {[%emt 00:00:07]} 12. Qd2
{[%clk 00:14:26]} {[%emt 00:01:39]} Bb7 {[%clk 00:18:19]} {[%emt 00:01:44]} 13.
Rfd1 {[%clk 00:12:43]} {[%emt 00:01:47]} d6 {[%clk 00:18:22]} {[%emt 00:00:03]}
14. Rac1 {[%clk 00:11:24]} {[%emt 00:01:24]} Rc8 {[%clk 00:18:04]} {[%emt
00:00:22]} 15. b3 {[%clk 00:07:47]} {[%emt 00:03:43]} Re8 {[%clk 00:18:03]}
{[%emt 00:00:06]} 16. Bg4 {[%clk 00:07:15]} {[%emt 00:00:37]} Qc7 {[%clk
00:17:27]} {[%emt 00:00:41]} 17. Nd5 {[%clk 00:07:11]} {[%emt 00:00:09]} Qc6
{[%clk 00:15:59]} {[%emt 00:01:33]} 18. f3 {[%clk 00:06:06]} {[%emt 00:01:10]}
Rcd8 {[%clk 00:16:02]} {[%emt 00:00:02]} 19. Bxe6 {[%clk 00:06:05]} {[%emt
00:00:05]} fxe6 {[%clk 00:16:05]} {[%emt 00:00:02]} 20. Nb4 {[%clk 00:05:35]}
{[%emt 00:00:35]} Qc8 {[%clk 00:16:01]} {[%emt 00:00:09]} 21. Bd4 {[%clk
00:05:01]} {[%emt 00:00:39]} e5 {[%clk 00:15:32]} {[%emt 00:00:34]} 22. Be3
{[%clk 00:05:02]} {[%emt 00:00:04]} h5 {[%clk 00:14:29]} {[%emt 00:01:08]} 23.
Kh1 {[%clk 00:04:19]} {[%emt 00:00:48]} Kh7 {[%clk 00:14:32]} {[%emt 00:00:02]}
24. a4 {[%clk 00:04:17]} {[%emt 00:00:08]} Rg8 {[%clk 00:14:14]} {[%emt
00:00:23]} 25. Nd5 {[%clk 00:04:07]} {[%emt 00:00:15]} Qe6 {[%clk 00:14:05]}
{[%emt 00:00:14]} 26. a5 {[%clk 00:03:31]} {[%emt 00:00:41]} bxa5 {[%clk
00:12:46]} {[%emt 00:01:24]} 27. Qxa5 {[%clk 00:03:26]} {[%emt 00:00:11]} Bxd5
{[%clk 00:12:12]} {[%emt 00:00:39]} 28. cxd5 {[%clk 00:03:29]} {[%emt
00:00:02]} Qf6 {[%clk 00:12:16]} 29. Rc7 {[%clk 00:02:54]} {[%emt 00:00:39]} g5
{[%clk 00:12:17]} {[%emt 00:00:05]} 30. Qd2 {[%clk 00:02:25]} {[%emt 00:00:34]}
Bh6 {[%clk 00:12:06]} {[%emt 00:00:16]} 31. Rxa7 {[%clk 00:02:17]} {[%emt
00:00:13]} Rg6 {[%clk 00:11:38]} {[%emt 00:00:33]} 32. Rf1 {[%clk 00:01:38]}
{[%emt 00:00:44]} Rdg8 {[%clk 00:11:04]} {[%emt 00:00:38]} 33. Qe2 {[%clk
00:01:24]} {[%emt 00:00:20]} Bf8 {[%clk 00:10:41]} {[%emt 00:00:27]} 34. g4
{[%clk 00:01:07]} {[%emt 00:00:22]} Rh6 {[%clk 00:10:31]} {[%emt 00:00:16]} 35.
Kg2 {[%clk 00:01:04]} {[%emt 00:00:08]} Qg6 {[%clk 00:10:33]} {[%emt 00:00:03]}
36. h3 {[%clk 00:01:02]} {[%emt 00:00:07]} Kh8 {[%clk 00:10:33]} {[%emt
00:00:04]} 37. b4 {[%emt 00:00:08]} Rh7 {[%clk 00:10:17]} {[%emt 00:00:20]} 38.
Rh1 {[%clk 00:00:54]} {[%emt 00:00:13]} Qh6 {[%clk 00:09:52]} {[%emt 00:00:30]}
39. Qe1 {[%clk 00:00:40]} {[%emt 00:00:18]} Rgg7 {[%clk 00:07:51]} {[%emt
00:02:05]} 40. b5 {[%clk 00:00:44]} {[%emt 00:00:02]} hxg4 {[%clk 00:07:54]}
{[%emt 00:00:02]} 41. hxg4 {[%clk 00:00:48]} {[%emt 00:00:02]} Qg6 {[%clk
00:07:57]} 42. Rxh7+ {[%clk 00:00:48]} {[%emt 00:00:04]} Rxh7 {[%clk 00:08:02]}
43. Bg1 {[%clk 00:00:13]} {[%emt 00:00:39]} Qh6 {[%clk 00:08:03]} {[%emt
00:00:04]} 44. Qg3 {[%clk 00:00:18]} Qh1+ {[%clk 00:08:06]} {[%emt 00:00:01]}
45. Kf2 {[%clk 00:00:22]} e6 {[%clk 00:07:06]} {[%emt 00:01:07]} 46. b6 {[%clk
00:00:26]} exd5 {[%clk 00:06:35]} {[%emt 00:00:36]} 47. b7 {[%clk 00:00:29]}
{[%emt 00:00:03]} 1-0



[ePGN "0.1;DGT LiveChess/2.2.6"]

[Event "MČR juniorů a juniorek v rapid šachu 2024"]
[Site "Hotel Fit Fun, Harrachov, Czech Republic"]
[Date "2024.09.21"]
[Round "4.1"]
[White "Hak David"]
[Black "Skypala Ondrej"]
[Result "0-1"]
[TimeControl "20+5"]
[WhiteFideId "377007"]
[BlackFideId "366285"]
[WhiteElo "2103"]
[BlackElo "2033"]

1. d4 {[%clk 00:20:09]} Nf6 {[%clk 00:20:02]} {[%emt 00:00:03]} 2. c4 {[%clk
00:20:13]} {[%emt 00:00:07]} e6 {[%clk 00:20:04]} {[%emt 00:00:03]} 3. Nc3
{[%clk 00:20:16]} {[%emt 00:00:01]} Bb4 {[%clk 00:20:08]} {[%emt 00:00:03]} 4.
e3 {[%clk 00:20:20]} c5 {[%clk 00:20:09]} {[%emt 00:00:03]} 5. Nge2 {[%clk
00:20:23]} {[%emt 00:00:02]} O-O {[%clk 00:19:44]} {[%emt 00:00:30]} 6. a3
{[%clk 00:20:26]} {[%emt 00:00:02]} cxd4 {[%clk 00:19:44]} {[%emt 00:00:05]} 7.
exd4 {[%clk 00:20:28]} {[%emt 00:00:03]} Be7 {[%clk 00:19:48]} {[%emt
00:00:02]} 8. d5 {[%clk 00:20:16]} {[%emt 00:00:17]} d6 {[%clk 00:19:48]}
{[%emt 00:00:05]} 9. g3 {[%clk 00:19:59]} {[%emt 00:00:21]} e5 {[%clk
00:19:51]} {[%emt 00:00:02]} 10. Bg2 {[%clk 00:19:59]} {[%emt 00:00:05]} Bf5
{[%clk 00:19:52]} {[%emt 00:00:04]} 11. O-O {[%clk 00:19:41]} {[%emt 00:00:22]}
Nbd7 {[%clk 00:19:55]} {[%emt 00:00:03]} 12. b4 {[%clk 00:19:41]} {[%emt
00:00:06]} a5 {[%clk 00:19:58]} {[%emt 00:00:02]} 13. Be3 {[%clk 00:17:33]}
{[%emt 00:02:13]} Ng4 {[%clk 00:19:25]} {[%emt 00:00:37]} 14. Bd2 {[%clk
00:16:26]} {[%emt 00:01:12]} axb4 {[%clk 00:19:29]} {[%emt 00:00:02]} 15. axb4
{[%clk 00:16:28]} {[%emt 00:00:03]} Rxa1 {[%clk 00:19:27]} {[%emt 00:00:07]} 16.
Qxa1 {[%clk 00:16:31]} Bd3 {[%clk 00:19:29]} {[%emt 00:00:03]} 17. Bh3 {[%clk
00:08:23]} {[%emt 00:08:14]} Ngf6 {[%clk 00:18:45]} {[%emt 00:00:49]} 18. Qa2
{[%clk 00:06:17]} {[%emt 00:02:11]} Nb6 {[%clk 00:18:29]} {[%emt 00:00:20]} 19.
Be3 {[%clk 00:03:07]} {[%emt 00:03:16]} Nxc4 {[%clk 00:18:30]} {[%emt
00:00:03]} 20. Rd1 {[%clk 00:02:47]} {[%emt 00:00:26]} Nxe3 {[%clk 00:17:19]}
{[%emt 00:01:16]} 21. Rxd3 {[%clk 00:02:42]} {[%emt 00:00:10]} Neg4 {[%clk
00:17:22]} 22. Qa7 {[%clk 00:01:58]} {[%emt 00:00:49]} Qa8 {[%clk 00:16:29]}
{[%emt 00:00:58]} 23. Qb6 {[%clk 00:00:37]} {[%emt 00:01:27]} Qa6 {[%clk
00:15:03]} {[%emt 00:01:31]} 24. Qxa6 {[%clk 00:00:41]} {[%emt 00:00:01]} bxa6
{[%clk 00:15:07]} 25. Na2 {[%clk 00:00:45]} e4 {[%clk 00:14:49]} {[%emt
00:00:23]} 26. Ra3 {[%clk 00:00:46]} {[%emt 00:00:03]} Ne5 {[%clk 00:14:53]}
{[%emt 00:00:02]} 27. Rxa6 {[%clk 00:00:43]} {[%emt 00:00:08]} Nxd5 {[%clk
00:14:53]} {[%emt 00:00:04]} 28. Nd4 {[%clk 00:00:40]} {[%emt 00:00:08]} Rb8
{[%clk 00:14:03]} {[%emt 00:00:56]} 29. Nf5 {[%clk 00:00:33]} {[%emt 00:00:12]}
Bf8 {[%clk 00:13:51]} {[%emt 00:00:16]} 30. Nxd6 {[%clk 00:00:16]} {[%emt
00:00:22]} Nc7 {[%clk 00:13:39]} {[%emt 00:00:18]} 31. Ra5 {[%clk 00:00:06]}
{[%emt 00:00:15]} Bxd6 {[%clk 00:13:40]} {[%emt 00:00:03]} 32. Nc3 {[%clk
00:00:10]} {[%emt 00:00:02]} Nf3+ {[%clk 00:13:21]} {[%emt 00:00:24]} 33. Kg2
{[%clk 00:00:15]} Bxb4 {[%clk 00:13:22]} {[%emt 00:00:05]} 34. Ra7 {[%clk
00:00:19]} Bxc3 {[%clk 00:13:02]} {[%emt 00:00:25]} 35. Rxc7 {[%clk 00:00:23]}
{[%emt 00:00:02]} Bf6 {[%clk 00:12:40]} {[%emt 00:00:27]} 36. Bf5 {[%clk
00:00:25]} {[%emt 00:00:02]} Ne1+ {[%clk 00:12:29]} {[%emt 00:00:16]} 37. Kf1
{[%clk 00:00:30]} Nf3 {[%clk 00:12:32]} {[%emt 00:00:02]} 38. Kg2 {[%clk
00:00:33]} {[%emt 00:00:02]} g6 {[%clk 00:12:20]} {[%emt 00:00:17]} 39. Bxe4
{[%clk 00:00:37]} {[%emt 00:00:01]} Ne5 {[%clk 00:12:15]} {[%emt 00:00:10]} 40.
Bd5 {[%clk 00:00:39]} {[%emt 00:00:02]} Rd8 {[%clk 00:12:17]} {[%emt 00:00:03]}
41. Bb3 {[%clk 00:00:42]} {[%emt 00:00:03]} Rd2 {[%clk 00:12:18]} {[%emt
00:00:03]} 42. Kf1 {[%clk 00:00:43]} {[%emt 00:00:04]} Rd7 {[%clk 00:12:05]}
{[%emt 00:00:19]} 43. Rc8+ {[%clk 00:00:37]} {[%emt 00:00:11]} Kg7 {[%clk
00:12:07]} {[%emt 00:00:02]} 44. Kg2 {[%clk 00:00:38]} {[%emt 00:00:04]} h5
{[%clk 00:12:05]} {[%emt 00:00:07]} 45. h3 {[%clk 00:00:35]} {[%emt 00:00:08]}
Rb7 {[%clk 00:11:55]} {[%emt 00:00:16]} 46. Bd5 {[%clk 00:00:37]} {[%emt
00:00:03]} Rb5 {[%clk 00:11:59]} 47. Be4 {[%clk 00:00:22]} {[%emt 00:00:20]}
Rb2 {[%clk 00:11:31]} {[%emt 00:00:33]} 48. Kf1 {[%clk 00:00:21]} {[%emt
00:00:07]} Nd7 {[%clk 00:11:18]} {[%emt 00:00:17]} 49. Rc7 {[%clk 00:00:25]}
{[%emt 00:00:02]} Nb6 {[%clk 00:11:13]} {[%emt 00:00:10]} 50. g4 {[%clk
00:00:16]} {[%emt 00:00:14]} h4 {[%clk 00:11:04]} {[%emt 00:00:14]} 51. f4
{[%clk 00:00:20]} Bd4 {[%clk 00:11:04]} {[%emt 00:00:04]} 52. f5 {[%clk
00:00:16]} {[%emt 00:00:10]} g5 {[%clk 00:11:00]} {[%emt 00:00:09]} 53. Rb7
{[%clk 00:00:17]} {[%emt 00:00:04]} Nc4 {[%clk 00:10:42]} {[%emt 00:00:23]} 54.
Rxb2 {[%clk 00:00:11]} {[%emt 00:00:11]} Bxb2 {[%clk 00:10:42]} {[%emt
00:00:04]} 55. Ke2 {[%clk 00:00:14]} {[%emt 00:00:03]} Ne5 {[%clk 00:10:40]}
{[%emt 00:00:07]} 56. Bg2 {[%clk 00:00:14]} {[%emt 00:00:05]} Bd4 {[%clk
00:10:41]} {[%emt 00:00:03]} 57. Kd2 {[%clk 00:00:15]} {[%emt 00:00:03]} f6
{[%clk 00:10:44]} {[%emt 00:00:03]} 58. Ke2 {[%clk 00:00:19]} {[%emt 00:00:01]}
Kf8 {[%clk 00:10:47]} {[%emt 00:00:02]} 59. Be4 {[%clk 00:00:14]} {[%emt
00:00:10]} Ke7 {[%clk 00:10:51]} 60. Kd2 {[%clk 00:00:18]} {[%emt 00:00:02]}
Kd6 {[%clk 00:10:54]} {[%emt 00:00:01]} 61. Ke2 {[%clk 00:00:22]} {[%emt
00:00:02]} Nd7 {[%clk 00:10:54]} {[%emt 00:00:04]} 62. Bf3 {[%clk 00:00:22]}
{[%emt 00:00:05]} Ke5 {[%clk 00:10:57]} {[%emt 00:00:02]} 63. Kf1 {[%clk
00:00:10]} {[%emt 00:00:17]} Kf4 {[%clk 00:11:00]} {[%emt 00:00:02]} 64. Kg2
{[%clk 00:00:14]} {[%emt 00:00:01]} Nc5 {[%clk 00:10:57]} {[%emt 00:00:07]} 65.
Be2 {[%clk 00:00:10]} {[%emt 00:00:10]} Ne4 {[%clk 00:10:48]} {[%emt 00:00:15]}
66. Bf1 {[%clk 00:00:12]} {[%emt 00:00:02]} Nc3 {[%clk 00:10:40]} {[%emt
00:00:13]} 67. Bd3 {[%clk 00:00:11]} {[%emt 00:00:07]} Ke3 {[%clk 00:10:43]}
{[%emt 00:00:02]} 68. Bc4 {[%clk 00:00:13]} {[%emt 00:00:03]} Ne2 {[%clk
00:10:42]} {[%emt 00:00:06]} 69. Bb5 {[%clk 00:00:11]} {[%emt 00:00:06]} Nf4+
{[%clk 00:10:44]} {[%emt 00:00:02]} 70. Kh2 {[%clk 00:00:15]} {[%emt 00:00:02]}
Kf2 {[%clk 00:10:42]} {[%emt 00:00:07]} 71. Bc6 {[%clk 00:00:16]} {[%emt
00:00:04]} Kf1 {[%clk 00:10:15]} {[%emt 00:00:32]} 72. Bb5+ {[%clk 00:00:19]}
{[%emt 00:00:03]} Ne2 {[%clk 00:10:12]} {[%emt 00:00:08]} 73. Kh1 {[%clk
00:00:22]} {[%emt 00:00:01]} Kf2 {[%clk 00:10:07]} {[%emt 00:00:10]} 74. Kh2
{[%clk 00:00:24]} {[%emt 00:00:03]} Ng1 {[%clk 00:10:09]} {[%emt 00:00:03]} 75.
Bc6 {[%clk 00:00:09]} {[%emt 00:00:20]} Be5 {[%clk 00:10:13]} {[%emt 00:00:01]}
76. Kh1 {[%clk 00:00:13]} {[%emt 00:00:02]} Nxh3 {[%clk 00:10:16]} {[%emt
00:00:01]} 77. Bg2 {[%clk 00:00:09]} {[%emt 00:00:10]} Nf4 {[%clk 00:10:16]}
{[%emt 00:00:04]} 78. Be4 {[%clk 00:00:08]} {[%emt 00:00:06]} Kg3 {[%clk
00:10:19]} {[%emt 00:00:02]} 0-1



[ePGN "0.1;DGT LiveChess/2.2.6"]

[Event "MČR juniorů a juniorek v rapid šachu 2024"]
[Site "Hotel Fit Fun, Harrachov, Czech Republic"]
[Date "2024.09.21"]
[Round "4.10"]
[White "Husa Daniel"]
[Black "Bezdek Tomas"]
[Result "0-1"]
[TimeControl "20+5"]
[WhiteFideId "393487"]
[BlackFideId "23733551"]
[WhiteElo "1866"]
[BlackElo "1973"]

1. d4 {[%clk 00:20:07]} {[%emt 00:00:02]} e6 {[%clk 00:20:09]} {[%emt
00:00:03]} 2. c4 {[%clk 00:20:10]} {[%emt 00:00:02]} Nf6 {[%clk 00:20:12]}
{[%emt 00:00:02]} 3. Nf3 {[%clk 00:20:09]} {[%emt 00:00:05]} b6 {[%clk
00:20:15]} {[%emt 00:00:02]} 4. g3 {[%clk 00:20:12]} {[%emt 00:00:03]} Ba6
{[%clk 00:20:19]} {[%emt 00:00:01]} 5. Nbd2 {[%clk 00:19:48]} {[%emt 00:00:29]}
Be7 {[%clk 00:19:56]} {[%emt 00:00:28]} 6. Bg2 {[%clk 00:19:47]} {[%emt
00:00:05]} d5 {[%clk 00:19:57]} {[%emt 00:00:03]} 7. O-O {[%clk 00:18:52]}
{[%emt 00:01:00]} c6 {[%clk 00:19:54]} {[%emt 00:00:09]} 8. b3 {[%clk
00:18:04]} {[%emt 00:00:53]} O-O {[%clk 00:19:54]} {[%emt 00:00:05]} 9. Bb2
{[%clk 00:17:39]} {[%emt 00:00:31]} Nbd7 {[%clk 00:19:22]} {[%emt 00:00:36]} 10.
Qc2 {[%clk 00:17:04]} {[%emt 00:00:40]} Rc8 {[%clk 00:19:20]} {[%emt 00:00:07]}
11. e4 {[%clk 00:16:03]} {[%emt 00:01:06]} c5 {[%clk 00:17:14]} {[%emt
00:02:12]} 12. exd5 {[%clk 00:11:52]} {[%emt 00:04:16]} exd5 {[%clk 00:17:04]}
{[%emt 00:00:16]} 13. dxc5 {[%clk 00:11:40]} {[%emt 00:00:16]} Bxc5 {[%clk
00:15:19]} {[%emt 00:01:50]} 14. Qf5 {[%clk 00:09:49]} {[%emt 00:01:55]} Re8
{[%clk 00:13:40]} {[%emt 00:01:44]} 15. Rfe1 {[%clk 00:09:10]} {[%emt
00:00:45]} dxc4 {[%clk 00:12:22]} {[%emt 00:01:24]} 16. Nxc4 {[%clk 00:08:53]}
{[%emt 00:00:21]} Bxc4 {[%clk 00:12:12]} {[%emt 00:00:16]} 17. bxc4 {[%clk
00:08:43]} {[%emt 00:00:14]} Qc7 {[%clk 00:09:49]} {[%emt 00:02:28]} 18. Bh3
{[%clk 00:07:31]} {[%emt 00:01:17]} Qc6 {[%clk 00:06:08]} {[%emt 00:03:46]} 19.
Rad1 {[%clk 00:05:22]} {[%emt 00:02:14]} Rxe1+ {[%clk 00:04:00]} {[%emt
00:02:13]} 20. Nxe1 {[%clk 00:04:59]} {[%emt 00:00:28]} Re8 {[%clk 00:03:50]}
{[%emt 00:00:15]} 21. Nf3 {[%clk 00:03:46]} {[%emt 00:01:18]} Re2 {[%clk
00:01:16]} {[%emt 00:02:38]} 22. Bd4 {[%clk 00:02:34]} {[%emt 00:01:17]} g6
{[%clk 00:00:26]} {[%emt 00:00:55]} 23. Qd3 {[%clk 00:01:56]} {[%emt 00:00:43]}
Qe4 {[%clk 00:00:27]} {[%emt 00:00:04]} 24. Qxe4 {[%clk 00:00:42]} {[%emt
00:01:19]} Rxe4 {[%clk 00:00:31]} {[%emt 00:00:02]} 25. Bg2 {[%clk 00:00:15]}
{[%emt 00:00:31]} Re2 {[%clk 00:00:24]} {[%emt 00:00:12]} 26. Bxc5 {[%clk
00:00:14]} {[%emt 00:00:06]} Nxc5 {[%clk 00:00:26]} {[%emt 00:00:03]} 27. Rd2
{[%clk 00:00:10]} {[%emt 00:00:09]} Re4 {[%clk 00:00:12]} {[%emt 00:00:19]} 28.
Nd4 {[%clk 00:00:09]} {[%emt 00:00:05]} Re1+ {[%clk 00:00:17]} 29. Bf1 {[%clk
00:00:13]} {[%emt 00:00:03]} Nfe4 {[%clk 00:00:20]} 30. Re2 {[%clk 00:00:12]}
{[%emt 00:00:07]} Rc1 {[%clk 00:00:22]} {[%emt 00:00:03]} 31. Re3 {[%clk
00:00:08]} {[%emt 00:00:09]} Nd2 {[%clk 00:00:16]} {[%emt 00:00:10]} 32. Re8+
{[%clk 00:00:08]} {[%emt 00:00:06]} Kg7 {[%clk 00:00:20]} 33. Kg2 {[%clk
00:00:10]} {[%emt 00:00:02]} Nxf1 {[%clk 00:00:20]} {[%emt 00:00:05]} 34. Nc6
{[%clk 00:00:07]} {[%emt 00:00:08]} Nd2 {[%clk 00:00:22]} {[%emt 00:00:03]} 35.
Nxa7 {[%clk 00:00:09]} {[%emt 00:00:04]} Nxc4 {[%clk 00:00:26]} {[%emt
00:00:01]} 36. Nb5 {[%clk 00:00:06]} {[%emt 00:00:08]} Rc2 {[%clk 00:00:25]}
{[%emt 00:00:05]} 0-1



[ePGN "0.1;DGT LiveChess/2.2.6"]